fUST/lending_fUST_20250531
["ID","MTS","AMOUNT","RATE_DAILY","PERIOD"]
[363317091,1748669955321,500.0,0.00024658,120]
[363317092,1748669962014,500.0,0.00024658,120]
[363317093,1748669969253,500.0,0.00024658,120]
[363317094,1748669975973,500.0,0.00024658,120]
[363317095,1748669984667,500.0,0.00024658,120]
[363317096,1748669994013,500.0,0.00024658,120]
[363317097,1748670001501,500.0,0.00024658,120]
[363317098,1748670010024,500.0,0.00024658,120]
[363317099,1748670018606,500.0,0.00024658,120]
[363317100,1748670026307,500.0,0.00024658,120]
[363317101,1748670032774,500.0,0.00024658,120]
[363317102,1748670039181,500.0,0.00024658,120]
[363317103,1748670047186,500.0,0.00024658,120]
[363317104,1748670062412,500.0,0.00024658,120]
[363317105,1748670071365,500.0,0.00024658,120]
[363317106,1748670081721,500.0,0.00024658,120]
[363317107,1748670090935,500.0,0.00024658,120]
[363317108,1748670098043,500.0,0.00024658,120]
[363317109,1748670104397,500.0,0.00024658,120]
[363317110,1748670113787,500.0,0.00024658,120]
[363317111,1748670120748,500.0,0.00024658,120]
[363317113,1748670127787,500.0,0.00024658,120]
[363317114,1748670134538,500.0,0.00024658,120]
[363317115,1748670141181,500.0,0.00024658,120]
[363317116,1748670152420,500.0,0.00024658,120]
[363317117,1748670170644,398.95317,0.00024658,120]
[363317118,1748670358051,-677.11021905,0.00016358,2]
[363317119,1748670392606,1828.4885774,0.00016449,120]
[363317120,1748670427081,-279.50172322,0.00016358,2]
[363317121,1748670437112,-512.38426623,0.00016358,2]
[363317122,1748670437133,-300.0,0.00016994,2]
[363317123,1748670437165,-300.0,0.00016994,2]
[363317124,1748670437192,-430.0,0.00016995,2]
[363317125,1748670437217,-430.0,0.00016995,2]
[363317126,1748670437240,-430.0,0.00016995,2]
[363317127,1748670437264,-430.0,0.00016995,2]
[363317128,1748670437286,-274.90808978,0.00016995,2]
[363317129,1748670437308,-430.0,0.00016995,2]
[363317130,1748670437333,-430.0,0.00017266,2]
[363317131,1748670437356,-691.2,0.00017266,2]
[363317132,1748670437379,-430.0,0.00017266,2]
[363317133,1748670437402,-430.0,0.00017266,2]
[363317134,1748670437427,-430.0,0.00017266,2]
[363317135,1748670437451,-430.0,0.00017266,2]
[363317136,1748670437476,-430.0,0.00017266,2]
[363317137,1748670437498,-400.6395,0.00017266,2]
[363317138,1748670437521,-430.0,0.00017266,2]
[363317139,1748670437546,-430.0,0.00017266,2]
[363317140,1748670437568,-430.0,0.00017266,2]
[363317141,1748670437592,-430.0,0.00017266,2]
[363317142,1748670437615,-430.0,0.00017266,2]
[363317143,1748670437636,-430.0,0.00017266,2]
[363317144,1748670437660,-430.0,0.00017266,2]
[363317145,1748670437682,-430.0,0.00017266,2]
[363317146,1748670437704,-430.0,0.00017266,2]
[363317147,1748670437726,-430.0,0.00017266,2]
[363317148,1748670437748,-430.0,0.00017266,2]
[363317149,1748670437769,-338.97422129,0.00017266,2]
[363317150,1748670437791,-430.0,0.00017266,2]
[363317151,1748670437812,-430.0,0.00017266,2]
[363317152,1748670437833,-500.0,0.00017267,2]
[363317153,1748670437855,-244.9080705,0.00017267,2]
[363317154,1748670437883,-430.0,0.00017267,2]
[363317155,1748670437907,-73.8187034,0.00017267,2]
[363317156,1748670450085,-430.0,0.00017266,2]
[363317157,1748670450106,-430.0,0.00017266,2]
[363317158,1748670450129,-356.1812966,0.00017267,2]
[363317159,1748670450151,-423.43366561,0.00017267,2]
[363317160,1748670450173,-430.0,0.00017267,2]
[363317161,1748670450195,-430.0,0.00017267,2]
[363317162,1748670450217,-562.3,0.00017267,2]
[363317163,1748670450239,-430.0,0.00017267,2]
[363317164,1748670450261,-31.73005252,0.00017267,2]
[363317165,1748670454679,160.746744,0.00013699,2]
[363317167,1748670554105,-5000.0,0.00016697,2]
[363317168,1748670554128,-430.0,0.00017266,2]
[363317169,1748670554150,-300.0,0.00017266,2]
[363317170,1748670554172,-398.26994748,0.00017267,2]
[363317171,1748670554194,-430.0,0.00017267,2]
[363317172,1748670554217,-248.15747046,0.00017267,2]
[363317173,1748670554238,-549.94695639,0.00017267,2]
[363317174,1748670554263,-534.5,0.00017267,2]
[363317175,1748670554287,-430.0,0.00017267,2]
[363317176,1748670554311,-430.0,0.00017267,2]
[363317177,1748670554334,-538.14,0.00017267,2]
[363317178,1748670554358,-546.56,0.00017267,2]
[363317179,1748670554380,-430.0,0.00017267,2]
[363317180,1748670554403,-430.0,0.00017267,2]
[363317181,1748670554426,-430.0,0.00017267,2]
[363317182,1748670554450,-827.75,0.00017267,2]
[363317183,1748670554473,-430.0,0.00017267,2]
[363317184,1748670554496,-430.0,0.00017267,2]
[363317185,1748670554525,-430.0,0.00017267,2]
[363317186,1748670554549,-21055.6,0.00017267,2]
[363317187,1748670554572,-430.0,0.00017267,2]
[363317188,1748670554596,-430.0,0.00017267,2]
[363317189,1748670554618,-430.0,0.00017267,2]
[363317190,1748670554640,-430.0,0.00017267,2]
[363317191,1748670554663,-430.0,0.00017267,2]
[363317192,1748670554688,-430.0,0.00017267,2]
[363317193,1748670554710,-430.0,0.00017267,2]
[363317194,1748670554731,-430.0,0.00017267,2]
[363317195,1748670554755,-508.50852807,0.00017267,2]
[363317196,1748670554776,-430.0,0.00017269,2]
[363317197,1748670554801,-277.46876436,0.00017442,2]
[363317198,1748670554822,-430.0,0.0001754,2]
[363317199,1748670554845,-430.0,0.0001754,2]
[363317200,1748670554867,-430.0,0.0001754,2]
[363317201,1748670554889,-430.0,0.00017541,2]
[363317202,1748670554915,-430.0,0.00017541,2]
[363317203,1748670554937,-401.53332796,0.00017541,2]
[363317204,1748670554963,-534.5,0.00017541,2]
[363317205,1748670554987,-430.0,0.00017541,2]
[363317206,1748670555013,-546.56,0.00017541,2]
[363317207,1748670555035,-430.0,0.00017541,2]
[363317208,1748670555057,-476.03533582,0.00017541,2]
[363317209,1748670555081,-827.75,0.00017541,2]
[363317210,1748670555104,-430.0,0.00017541,2]
[363317211,1748670555127,-21055.6,0.00017541,2]
[363317212,1748670555151,-430.0,0.00017541,2]
[363317213,1748670555174,-430.0,0.00017541,2]
[363317214,1748670555197,-430.0,0.00017541,2]
[363317215,1748670555219,-430.0,0.00017541,2]
[363317216,1748670555243,-430.0,0.00017541,2]
[363317217,1748670555268,-430.0,0.00017543,2]
[363317218,1748670555291,-452.75569905,0.00017814,2]
[363317219,1748670555316,-500.0,0.00017814,2]
[363317220,1748670555341,-500.0,0.00017814,2]
[363317221,1748670555367,-179.77209088,0.00017814,2]
[363317222,1748670555390,-430.0,0.00017814,2]
[363317223,1748670555415,-534.5,0.00017815,2]
[363317224,1748670555439,-430.0,0.00017815,2]
[363317225,1748670555465,-546.56,0.00017815,2]
[363317226,1748670555488,-430.0,0.00017815,2]
[363317227,1748670555515,-827.75,0.00017815,2]
[363317228,1748670555539,-430.0,0.00017815,2]
[363317229,1748670555561,-21055.6,0.00017815,2]
[363317230,1748670555584,-430.0,0.00017815,2]
[363317231,1748670555767,-430.0,0.00017815,2]
[363317232,1748670555791,-430.0,0.00017815,2]
[363317233,1748670555813,-246.01438803,0.00017817,2]
[363317234,1748670555833,-400.0,0.00017817,2]
[363317235,1748670555854,-507.52922009,0.00017817,2]
[363317236,1748670555875,-449.12365192,0.00017817,2]
[363317237,1748670555896,-430.0,0.00017817,2]
[363317238,1748670555921,-430.0,0.00017817,2]
[363317239,1748670555943,-474.12046204,0.00017817,2]
[363317240,1748670555964,-430.0,0.00017817,2]
[363317241,1748670555987,-430.0,0.00017817,2]
[363317242,1748670556009,-430.0,0.00017817,2]
[363317243,1748670556031,-430.0,0.00017817,2]
[363317244,1748670556052,-509.63001651,0.00017817,2]
[363317245,1748670556074,-430.0,0.00017817,2]
[363317246,1748670556096,-430.0,0.00017817,2]
[363317247,1748670556118,-300.80297109,0.00017817,2]
[363317248,1748670556139,-430.0,0.00017817,2]
[363317249,1748670556160,-491.06491886,0.00017817,2]
[363317250,1748670556181,-430.0,0.00017817,2]
[363317251,1748670556203,-430.0,0.00017817,2]
[363317252,1748670556226,-255.73773825,0.00017817,2]
[363317253,1748670556248,-386.64023349,0.00017817,2]
[363317254,1748670556272,-430.0,0.00017817,2]
[363317255,1748670556295,-430.0,0.00017817,2]
[363317256,1748670556317,-435.91555211,0.00017817,2]
[363317257,1748670556338,-430.0,0.00017817,2]
[363317258,1748670556362,-349.73989259,0.00017817,2]
[363317259,1748670556384,-349.28049335,0.00017817,2]
[363317260,1748670556407,-430.0,0.00017817,2]
[363317261,1748670556429,-430.0,0.00017817,2]
[363317262,1748670556450,-350.31654117,0.00017817,2]
[363317263,1748670556472,-430.0,0.00017817,2]
[363317264,1748670556494,-430.0,0.00017817,2]
[363317265,1748670556515,-473.97277735,0.00017817,2]
[363317266,1748670556538,-332.63020343,0.00017817,2]
[363317267,1748670556560,-385.90702769,0.00017817,2]
[363317268,1748670556582,-434.16310397,0.00017817,2]
[363317269,1748670556603,-430.0,0.00017817,2]
[363317270,1748670556626,-430.0,0.00017817,2]
[363317271,1748670556649,-430.0,0.00017817,2]
[363317272,1748670556671,-430.0,0.00017817,2]
[363317273,1748670556692,-430.0,0.00017817,2]
[363317274,1748670556714,-430.0,0.00017817,2]
[363317275,1748670556736,-430.0,0.00017817,2]
[363317276,1748670556757,-430.0,0.00017817,2]
[363317277,1748670556778,-385.04879985,0.00017817,2]
[363317278,1748670556800,-430.0,0.00017817,2]
[363317279,1748670556823,-430.0,0.00017817,2]
[363317280,1748670556844,-1000.0,0.00017817,2]
[363317281,1748670556866,-430.0,0.00017817,2]
[363317282,1748670556887,-430.0,0.00017817,2]
[363317283,1748670556911,-430.0,0.00017817,2]
[363317284,1748670556933,-430.0,0.00017817,2]
[363317285,1748670556957,-430.0,0.00017817,2]
[363317286,1748670556979,-521.11051851,0.00017817,2]
[363317287,1748670556999,-430.0,0.00017817,2]
[363317288,1748670557020,-315.40271961,0.00017817,2]
[363317289,1748670557040,-430.0,0.00017817,2]
[363317290,1748670557062,-385.60083849,0.00017817,2]
[363317291,1748670624037,523.41004715,0.00021917,60]
[363317299,1748670632282,-513.85908739,0.00017267,2]
[363317300,1748670632292,-430.0,0.00017267,2]
[363317301,1748670632301,-430.0,0.00017267,2]
[363317302,1748670632311,-186.79093282,0.0001746,2]
[363317303,1748670632320,-430.0,0.00017541,2]
[363317304,1748670632329,-430.0,0.00017541,2]
[363317305,1748670632339,-64.88582426,0.00017815,2]
[363317306,1748670632355,-365.11417574,0.00017815,2]
[363317307,1748670632364,-430.0,0.00017815,2]
[363317308,1748670632374,-950.60916151,0.00017817,2]
[363317309,1748670632383,-430.0,0.00017817,2]
[363317310,1748670632393,-2559.23059525,0.00018,2]
[363317311,1748670632404,-4620.31116093,0.00018,2]
[363317339,1748670638200,-606.41,0.00017267,2]
[363317341,1748670638210,-606.41,0.00017541,2]
[363317343,1748670638220,-606.41,0.00017815,2]
[363317345,1748670638229,-14291.53427783,0.00018,2]
[363317347,1748670638239,-430.0,0.00018088,2]
[363317349,1748670638248,-430.0,0.00018089,2]
[363317351,1748670638258,-546.56,0.00018089,2]
[363317353,1748670638267,-430.0,0.00018089,2]
[363317355,1748670638277,-827.75,0.00018089,2]
[363317357,1748670638287,-430.0,0.00018089,2]
[363317359,1748670638296,-21055.6,0.00018089,2]
[363317361,1748670638306,-430.0,0.00018089,2]
[363317363,1748670638316,-430.0,0.00018089,2]
[363317365,1748670638325,-430.0,0.00018089,2]
[363317367,1748670638335,-430.0,0.00018089,2]
[363317370,1748670638344,-430.0,0.00018089,2]
[363317371,1748670638353,-606.41,0.00018089,2]
[363317373,1748670638362,-430.0,0.00018091,2]
[363317376,1748670638371,-430.0,0.00018091,2]
[363317377,1748670638380,-430.0,0.00018091,2]
[363317379,1748670638389,-430.0,0.00018091,2]
[363317381,1748670638398,-430.0,0.00018091,2]
[363317383,1748670638408,-430.0,0.00018091,2]
[363317386,1748670638417,-485.82,0.00018091,2]
[363317388,1748670638426,-1336.21,0.00018091,2]
[363317389,1748670638435,-430.0,0.00018091,2]
[363317392,1748670638445,-700.0,0.00018164,2]
[363317394,1748670638455,-430.0,0.00018362,2]
[363317395,1748670638465,-500.0,0.00018362,2]
[363317398,1748670638474,-325.84046361,0.00018362,2]
[363317400,1748670638483,-430.0,0.00018363,2]
[363317401,1748670638493,-546.56,0.00018363,2]
[363317403,1748670638502,-430.0,0.00018363,2]
[363317405,1748670638511,-827.75,0.00018363,2]
[363317407,1748670638520,-430.0,0.00018363,2]
[363317408,1748670638529,-21055.6,0.00018363,2]
[363317409,1748670638538,-430.0,0.00018363,2]
[363317410,1748670638547,-430.0,0.00018363,2]
[363317411,1748670638556,-430.0,0.00018363,2]
[363317412,1748670638566,-430.0,0.00018363,2]
[363317413,1748670638575,-430.0,0.00018363,2]
[363317414,1748670638585,-606.41,0.00018363,2]
[363317415,1748670638594,-430.0,0.00018365,2]
[363317416,1748670638603,-430.0,0.00018365,2]
[363317417,1748670638612,-1336.21,0.00018365,2]
[363317418,1748670638622,-430.0,0.00018365,2]
[363317419,1748670638631,-420.0,0.00018561,2]
[363317420,1748670638640,-210.68,0.00018629,3]
[363317421,1748670638649,-430.0,0.00018636,2]
[363317422,1748670638658,-430.0,0.00018637,2]
[363317423,1748670638667,-546.56,0.00018637,2]
[363317424,1748670638677,-430.0,0.00018637,2]
[363317425,1748670638686,-827.75,0.00018637,2]
[363317426,1748670638695,-430.0,0.00018637,2]
[363317427,1748670638704,-21055.6,0.00018637,2]
[363317428,1748670638713,-430.0,0.00018637,2]
[363317429,1748670638723,-430.0,0.00018637,2]
[363317430,1748670638732,-430.0,0.00018637,2]
[363317431,1748670638742,-430.0,0.00018637,2]
[363317432,1748670638751,-430.0,0.00018637,2]
[363317433,1748670638760,-606.41,0.00018637,2]
[363317434,1748670638770,-430.0,0.00018639,2]
[363317435,1748670638779,-430.0,0.00018639,2]
[363317436,1748670638789,-1336.21,0.00018639,2]
[363317438,1748670638799,-430.0,0.00018639,2]
[363317440,1748670638808,-212.77096907,0.00018891,2]
[363317442,1748670638818,-160.0,0.00018891,2]
[363317444,1748670638827,-842.5625,0.00018891,2]
[363317446,1748670638837,-423.4608169,0.00018891,2]
[363317449,1748670638847,-229.3428821,0.00018891,2]
[363317451,1748670638856,-160.0,0.00018891,2]
[363317452,1748670638865,-1201.39875444,0.000189,2]
[363317453,1748670638874,-160.0,0.00018909,2]
[363317454,1748670638884,-430.0,0.0001891,2]
[363317455,1748670638894,-430.0,0.00018911,2]
[363317456,1748670638903,-546.56,0.00018911,2]
[363317457,1748670638912,-430.0,0.00018911,2]
[363317458,1748670638922,-827.75,0.00018911,2]
[363317459,1748670638934,-430.0,0.00018911,2]
[363317460,1748670638944,-21055.6,0.00018911,2]
[363317461,1748670638953,-430.0,0.00018911,2]
[363317462,1748670638963,-430.0,0.00018911,2]
[363317463,1748670638973,-430.0,0.00018911,2]
[363317464,1748670638983,-430.0,0.00018911,2]
[363317465,1748670638994,-430.0,0.00018911,2]
[363317466,1748670639004,-606.41,0.00018911,2]
[363317467,1748670639014,-308.88,0.00018913,2]
[363317468,1748670639024,-430.0,0.00018913,2]
[363317469,1748670639033,-1336.21,0.00018913,2]
[363317470,1748670639042,-222.99991208,0.00018913,2]
[363317471,1748670639051,-152.27715424,0.00019085,2]
[363317472,1748670639060,-1201.3987543,0.00019107,2]
[363317473,1748670639070,-500.0,0.00019178,2]
[363317474,1748670639079,-500.0,0.00019178,2]
[363317475,1748670639089,-500.0,0.00019178,2]
[363317476,1748670639098,-500.0,0.00019178,2]
[363317477,1748670639107,-500.0,0.00019178,2]
[363317478,1748670639117,-500.0,0.00019178,2]
[363317479,1748670639126,-500.0,0.00019178,2]
[363317480,1748670639137,-151.0,0.00019178,2]
[363317481,1748670639147,-305.152066,0.00019178,2]
[363317482,1748670639156,-517.24285801,0.00019184,2]
[363317483,1748670639166,-430.0,0.00019185,2]
[363317484,1748670639177,-546.56,0.00019185,2]
[363317485,1748670639187,-430.0,0.00019185,2]
[363317486,1748670639197,-827.75,0.00019185,2]
[363317487,1748670639206,-430.0,0.00019185,2]
[363317488,1748670639216,-21055.6,0.00019185,2]
[363317489,1748670639225,-430.0,0.00019185,2]
[363317490,1748670639235,-430.0,0.00019185,2]
[363317491,1748670639244,-430.0,0.00019185,2]
[363317492,1748670639254,-430.0,0.00019185,2]
[363317493,1748670639263,-430.0,0.00019185,2]
[363317494,1748670639273,-606.41,0.00019185,2]
[363317495,1748670639283,-430.0,0.00019187,2]
[363317496,1748670639293,-1336.21,0.00019187,2]
[363317497,1748670639302,-1462.71,0.000192,2]
[363317498,1748670639311,-156.587,0.00019233,2]
[363317499,1748670639321,-700.0,0.0001926,2]
[363317500,1748670639330,-162.380719,0.00019288,2]
[363317501,1748670639340,-1201.3987543,0.00019314,2]
[363317502,1748670639349,-168.3888056,0.00019343,2]
[363317503,1748670639360,-174.61919141,0.00019398,2]
[363317504,1748670639370,-181.08010149,0.00019453,2]
[363317505,1748670639379,-430.0,0.00019459,2]
[363317506,1748670639388,-546.56,0.00019459,2]
[363317507,1748670639399,-430.0,0.00019459,2]
[363317508,1748670639409,-827.75,0.00019459,2]
[363317509,1748670639418,-430.0,0.00019459,2]
[363317510,1748670639427,-21055.6,0.00019459,2]
[363317511,1748670639437,-430.0,0.00019459,2]
[363317512,1748670639446,-430.0,0.00019459,2]
[363317513,1748670639457,-430.0,0.00019459,2]
[363317514,1748670639468,-430.0,0.00019459,2]
[363317515,1748670639478,-430.0,0.00019459,2]
[363317516,1748670639490,-606.41,0.00019459,2]
[363317517,1748670639500,-430.0,0.00019461,2]
[363317518,1748670639510,-1336.21,0.00019461,2]
[363317519,1748670639520,-187.78006525,0.00019508,2]
[363317520,1748670639531,-1201.3987543,0.00019521,2]
[363317521,1748670639541,-194.72792766,0.00019563,2]
[363317522,1748670639551,-201.93286099,0.00019618,2]
[363317523,1748670639560,-209.40437684,0.00019673,2]
[363317524,1748670639569,-1201.3987543,0.00019728,2]
[363317525,1748670639579,-430.0,0.00019733,2]
[363317526,1748670639589,-546.56,0.00019733,2]
[363317527,1748670639598,-430.0,0.00019733,2]
[363317528,1748670639607,-827.75,0.00019733,2]
[363317529,1748670639617,-430.0,0.00019733,2]
[363317530,1748670639626,-21055.6,0.00019733,2]
[363317531,1748670639635,-430.0,0.00019733,2]
[363317532,1748670639644,-430.0,0.00019733,2]
[363317533,1748670639653,-430.0,0.00019733,2]
[363317534,1748670639662,-430.0,0.00019733,2]
[363317535,1748670639670,-430.0,0.00019733,2]
[363317536,1748670639680,-430.0,0.00019735,2]
[363317537,1748670639689,-1336.21,0.00019735,2]
[363317538,1748670639698,-1201.3987543,0.00019934,2]
[363317539,1748670639707,-456.905,0.00019935,2]
[363317540,1748670639717,-430.0,0.00020007,2]
[363317541,1748670639726,-546.56,0.00020007,2]
[363317542,1748670639736,-344.16,0.00020007,2]
[363317543,1748670639745,-827.75,0.00020007,2]
[363317544,1748670639755,-430.0,0.00020007,2]
[363317545,1748670639764,-21055.6,0.00020007,2]
[363317546,1748670639773,-430.0,0.00020007,2]
[363317547,1748670639783,-430.0,0.00020007,2]
[363317548,1748670639792,-430.0,0.00020007,2]
[363317549,1748670639801,-430.0,0.00020007,2]
[363317550,1748670639811,-430.0,0.00020007,2]
[363317551,1748670639820,-430.0,0.00020009,2]
[363317552,1748670639829,-1336.21,0.00020009,2]
[363317553,1748670639839,-157.03337844,0.0002008,2]
[363317554,1748670639848,-1201.3987543,0.00020141,2]
[363317555,1748670639857,-587.0,0.00020273,2]
[363317556,1748670639866,-221.0,0.00020274,3]
[363317557,1748670639875,-430.0,0.00020281,2]
[363317558,1748670639884,-546.56,0.00020281,2]
[363317559,1748670639893,-827.75,0.00020281,2]
[363317560,1748670639903,-430.0,0.00020281,2]
[363317561,1748670639913,-21055.6,0.00020281,2]
[363317562,1748670639923,-430.0,0.00020281,2]
[363317563,1748670639938,-430.0,0.00020281,2]
[363317564,1748670639949,-430.0,0.00020281,2]
[363317566,1748670639960,-430.0,0.00020281,2]
[363317567,1748670639969,-430.0,0.00020281,2]
[363317568,1748670639979,-430.0,0.00020283,2]
[363317569,1748670639988,-1336.21,0.00020283,2]
[363317570,1748670639997,-1201.3987543,0.00020348,3]
[363317571,1748670640006,-700.0,0.00020356,2]
[363317572,1748670640017,-430.0,0.00020555,2]
[363317573,1748670640026,-546.56,0.00020555,2]
[363317574,1748670640035,-827.75,0.00020555,2]
[363317575,1748670640044,-430.0,0.00020555,2]
[363317576,1748670640053,-21055.6,0.00020555,2]
[363317577,1748670640063,-430.0,0.00020555,2]
[363317578,1748670640072,-430.0,0.00020555,2]
[363317579,1748670640082,-430.0,0.00020555,2]
[363317580,1748670640091,-189.97,0.00020555,2]
[363317581,1748670640100,-430.0,0.00020555,2]
[363317582,1748670640110,-1201.3987543,0.00020555,3]
[363317583,1748670640119,-430.0,0.00020557,2]
[363317584,1748670640128,-1336.21,0.00020557,2]
[363317585,1748670640137,-207.4,0.00020731,2]
[363317586,1748670640146,-5000.0,0.00020731,2]
[363317587,1748670640156,-600.22195784,0.00020754,2]
[363317588,1748670640165,-1201.3987543,0.00020762,3]
[363317589,1748670640174,-430.0,0.00020829,2]
[363317591,1748670640184,-546.56,0.00020829,2]
[363317593,1748670640193,-827.75,0.00020829,2]
[363317595,1748670640203,-430.0,0.00020829,2]
[363317597,1748670640212,-21055.6,0.00020829,2]
[363317599,1748670640222,-430.0,0.00020829,2]
[363317601,1748670640231,-430.0,0.00020829,2]
[363317603,1748670640240,-395.83,0.00020829,2]
[363317605,1748670640250,-430.0,0.00020829,2]
[363317607,1748670640259,-430.0,0.00020831,2]
[363317609,1748670640268,-1336.21,0.00020831,2]
[363317610,1748670640277,-157.5499743,0.00020959,2]
[363317611,1748670640288,-1201.3987543,0.00020969,4]
[363317612,1748670640297,-600.22195784,0.00020981,2]
[363317613,1748670640307,-56825.51009,0.00021102,2]
[363317614,1748670640316,-546.56,0.00021103,2]
[363317615,1748670640326,-430.0,0.00021103,2]
[363317616,1748670640336,-827.75,0.00021103,2]
[363317617,1748670640346,-430.0,0.00021103,2]
[363317618,1748670640357,-21055.6,0.00021103,2]
[363317619,1748670640367,-430.0,0.00021103,2]
[363317624,1748670640501,-430.0,0.00021103,2]
[363317626,1748670640513,-430.0,0.00021103,2]
[363317628,1748670640523,-430.0,0.00021105,2]
[363317630,1748670640532,-1336.21,0.00021105,2]
[363317632,1748670640542,-776.59145559,0.0002112,2]
[363317634,1748670640551,-1201.3987543,0.00021176,4]
[363317636,1748670640561,-600.22195784,0.00021198,2]
[363317638,1748670640570,-218.84426703,0.00021233,2]
[363317640,1748670640579,-157.5499743,0.00021233,2]
[363317642,1748670640589,-4001.35746561,0.00021233,2]
[363317644,1748670640599,-5000.0,0.00021279,2]
[363317646,1748670640608,-500.0,0.00021291,2]
[363317648,1748670640617,-500.0,0.00021291,2]
[363317650,1748670640627,-500.0,0.00021291,2]
[363317652,1748670640638,-502.84122441,0.00021291,2]
[363317654,1748670640647,-500.0,0.00021291,2]
[363317656,1748670640657,-500.0,0.00021291,2]
[363317658,1748670640666,-500.0,0.00021291,2]
[363317660,1748670640675,-215.99549423,0.00021291,2]
[363317662,1748670640685,-500.0,0.00021291,2]
[363317664,1748670640694,-502.12325932,0.00021291,2]
[363317666,1748670640703,-500.0,0.00021291,2]
[363317668,1748670640712,-500.0,0.00021291,2]
[363317670,1748670640721,-501.60266877,0.00021291,2]
[363317672,1748670640731,-500.0,0.00021291,2]
[363317674,1748670640740,-500.0,0.00021291,2]
[363317676,1748670640749,-501.67135089,0.00021291,2]
[363317678,1748670640758,-500.0,0.00021291,2]
[363317680,1748670640767,-450.3400897,0.00021291,2]
[363317682,1748670640776,-500.0,0.00021291,2]
[363317684,1748670640785,-160.18894433,0.00021291,2]
[363317686,1748670640795,-312.5513002,0.00021342,2]
[363317688,1748670640804,-572.2963003,0.00021342,2]
[363317690,1748670640813,-352.4210161,0.00021342,2]
[363317692,1748670640822,-572.2963003,0.00021342,2]
[363317694,1748670640831,-189.2886489,0.00021342,2]
[363317696,1748670640841,-153.841363,0.00021364,4]
[363317698,1748670640850,-153.841363,0.00021364,6]
[363317700,1748670640859,-153.841363,0.00021366,2]
[363317702,1748670640868,-666.9145776,0.00021369,25]
[363317704,1748670640877,-430.0,0.00021377,2]
[363317706,1748670640886,-546.56,0.00021377,2]
[363317708,1748670640896,-827.75,0.00021377,2]
[363317710,1748670640905,-430.0,0.00021377,2]
[363317712,1748670640914,-21055.6,0.00021377,2]
[363317714,1748670640923,-430.0,0.00021377,2]
[363317716,1748670640936,-430.0,0.00021377,2]
[363317718,1748670640945,-430.0,0.00021377,2]
[363317720,1748670640954,-195.30939426,0.00021379,2]
[363317722,1748670640964,-1336.21,0.00021379,2]
[363317724,1748670640975,-1201.3987543,0.00021383,5]
[363317726,1748670640983,-151.0,0.000214,3]
[363317728,1748670640993,-700.0,0.00021452,2]
[363317730,1748670641003,-600.22195784,0.00021495,2]
[363317732,1748670641012,-666.9145776,0.00021505,26]
[363317734,1748670641022,-153.841363,0.00021528,3]
[363317736,1748670641038,-2045.595871,0.0002156,3]
[363317738,1748670641047,-1201.3987543,0.0002159,5]
[363317740,1748670641057,-151.0,0.000216,3]
[363317742,1748670641066,-666.9145776,0.00021641,27]